[Event "BL 2024-25"]
[Site "Austria"]
[Date "2024.10.09"]
[Round "1.32"]
[White "Peyrer, Konstantin"]
[Black "Andreikin, Dmitry"]
[Result "0-1"]
[ECO "A30"]
[WhiteElo "2415"]
[BlackElo "2729"]
[Annotator "TA"]
[PlyCount "82"]
[EventDate "2024.08.28"]
[EventType "team-tourn"]
[EventCountry "AUT"]
[SourceTitle "playchess.com"]
[Source "ChessBase"]
[SourceQuality "1"]
[WhiteTeam "Ottakring"]
[BlackTeam "Linz"]
[TimeControl "40/5400+30:1800+30"]

{[%evp 15,82,4,40,23,29,18,37,38,42,0,0,0,0,-12,0,0,0,-21,0,0,-11,-7,0,-75,-43,-33,-41,-33,-33,-58,-60,-64,-24,-27,-37,-32,-29,-31,-19,-85,-79,-160,-171,-163,-155,-160,-170,-174,-171,-152,-150,-231,-231,-357,-244,-381,-381,-374,-341,-1667,-1666,-1760,-1640,-12796,-12794,-7082,-6614,-5210,-4718]} 1. Nf3 {[%emt 0:00:10]} Nf6 {[%emt 0:00:54]} 2. c4 {[%emt 0:00:09]} b6 {[%emt 0:00:37]} 3. g3 {[%emt 0:01:09]} Bb7 {[%emt 0:00:21]} 4. Bg2 {[%emt 0:00:07]} g6 {[%emt 0:00:30]} 5. b3 {[%emt 0:01:45]} Bg7 {[%emt 0:03:19]} 6. Bb2 {[%emt 0:00:10]} O-O {[%emt 0:00:29]} 7. O-O {[%emt 0:00:15]} c5 {[%emt 0:09:24]} 8. Nc3 {[%emt 0:04:02]} a6 {[%emt 0:03:38]} 9. e3 {[%emt 0:08:28]} d6 {[%emt 0:02:45]} 10. d4 {[%emt 0:00:46]} Nbd7 {[%emt 0:00:05]} 11. d5 {[%emt 0:02:51] Weiß steht etwas besser.} b5 {[%emt 0:01:16][%cal Bb6b5,Bb5b4][%mdl 32]} 12. a4 {[%emt 0:03:20]} (12. Qc2 $14) 12... Nxd5 $11 {[%emt 0:03:30]} 13. cxd5 {[%emt 0:01:32] Schwarz muss nun Rb1 beachten.} b4 {[%emt 0:00:16]} 14. Rc1 {[%emt 0:00:15][%cal Oe3e4]} Qa5 {[%emt 0:08:02]} (14... bxc3 {vereinfacht} 15. Bxc3 Bxc3 16. Rxc3 Nf6) 15. Nd2 {[%emt 0:08:02][%cal Oc3e4] Zielt auf Nce4! ab.} Nb6 {[%emt 0:00:10]} ({Viel schlechter ist} 15... Bxc3 16. Nc4 Qd8 17. Bxc3 bxc3 18. a5 $14 (18. Rxc3 a5 $11)) 16. Nde4 {[%emt 0:00:08][%cal Oe4c5]} Rab8 {[%emt 0:04:28][%cal Of7f5]} (16... c4 $5 17. bxc4 Nxc4 $11) 17. Qc2 {[%emt 0:07:36]} bxc3 {[%emt 0:00:39]} 18. Bxc3 {[%emt 0:00:05]} Bxc3 {[%emt 0:00:09]} 19. Qxc3 {[%emt 0:00:03]} (19. Nxc3 $11 Bc8 20. h3) 19... Qxc3 {[%emt 0:00:16]} 20. Nxc3 {[%emt 0:00:06]} a5 {[%emt 0:17:34]} 21. Rfd1 {[%emt 0:01:36]} Ba6 {[%emt 0:02:29]} 22. Bf1 {[%emt 0:06:07]} Bxf1 {[%emt 0:00:06]} 23. Kxf1 {[%emt 0:00:04]} c4 {[%emt 0:02:07]} 24. Rb1 {[%emt 0:00:09]} cxb3 {[%emt 0:00:52]} 25. Rxb3 {[%emt 0:00:35]} Nc4 {[%emt 0:00:07]} 26. Nb5 {[%emt 0:00:27]} Rfc8 {[%emt 0:00:23]} 27. Ke2 {[%emt 0:03:25] [#]} (27. Rdd3 $11 {bleibt in der Remisbreite.}) 27... Nb6 $1 $17 {[%emt 0:02:59]} 28. Nc3 {[%emt 0:01:51] [#]} (28. Rd4 $142) 28... Nxa4 $1 {[%emt 0:01:02][%mdl 512]} 29. Rxb8 {[%emt 0:00:06]} Nxc3+ {[%emt 0:00:06]} 30. Kd3 {[%emt 0:00:03]} Rxb8 {[%emt 0:00:09]} 31. Kxc3 {[%emt 0:00:07][%mdl 4096] Endspiel. KR-KR} f5 {[%emt 0:00:45]} 32. Rd4 {[%emt 0:01:15]} Kg7 {[%emt 0:05:49]} 33. f4 {[%emt 0:05:08]} (33. Ra4 $17 {war einen Versuch wert.}) 33... Kf6 $19 {[%emt 0:01:15]} 34. h3 {[%emt 0:04:20]} (34. Ra4 $142) 34... h5 {[%emt 0:05:05] ...Rb1 wäre nun fies.} 35. Ra4 {[%emt 0:05:44]} (35. Kc2 {war erzwungen.}) 35... Rb1 {[%emt 0:05:19]} 36. Rxa5 {[%emt 0:01:46]} Rh1 {[%emt 0:00:10]} 37. g4 $2 {[%emt 0:07:45]} (37. h4) 37... fxg4 {[%emt 0:00:29] Schwarz steht klar auf Gewinn.} 38. hxg4 {[%emt 0:00:09]} hxg4 {[%emt 0:00:04]} 39. Ra2 {[%emt 0:00:12]} Kf5 {[%emt 0:00:50]} 40. Rg2 {[%emt 0:00:16]} Rh3 {[%emt 0:01:10]} 41. Kd4 {[%emt 0:31:25]} g3 {[%emt 0:30:09] Gewichteter Fehlerwert: Weiß=0.60/Schwarz=0.10 (sehr präzise) .  Fehler:       	Weiß=8     	---        Ungenau:       	---       	Schwarz=3     OK:         	Weiß=10    	Schwarz=14    Bester:       	Weiß=2     	Schwarz=3     Stark:        	---       	Schwarz=1     Brilliant:      	---       	Schwarz=1} 0-1

[Event "BL 2024-25"]
[Site "Austria"]
[Date "2024.10.09"]
[Round "1.33"]
[White "Vitiugov, Nikita"]
[Black "Froewis, Georg"]
[Result "1-0"]
[ECO "A13"]
[WhiteElo "2667"]
[BlackElo "2429"]
[Annotator "TA"]
[PlyCount "91"]
[EventDate "2024.08.28"]
[EventType "team-tourn"]
[EventCountry "AUT"]
[SourceTitle "playchess.com"]
[Source "ChessBase"]
[SourceQuality "1"]
[WhiteTeam "Linz"]
[BlackTeam "Ottakring"]
[TimeControl "40/5400+30:1800+30"]

{[%evp 11,91,14,17,19,30,29,26,21,39,39,74,29,39,-10,-12,-29,-25,-19,-12,-21,63,52,43,18,18,0,9,0,33,0,0,-24,-19,-5,-14,-13,0,0,0,0,0,0,0,0,112,112,98,107,125,32,99,99,95,97,204,153,175,176,202,172,212,189,220,198,199,118,129,128,151,103,453,458,446,427,700,708,741,717,933,908,846,835]} 1. Nf3 {[%emt 0:00:24]} d5 {[%emt 0:00:13]} 2. b3 {[%emt 0:00:27]} Nf6 {[%emt 0:01:17]} 3. Bb2 {[%emt 0:00:09]} e6 {[%emt 0:00:04]} 4. c4 {[%emt 0:01:45]} Be7 {[%emt 0:00:18]} 5. g3 {[%emt 0:00:49]} O-O {[%emt 0:00:15]} 6. Bg2 {[%emt 0:00:06]} a5 {[%emt 0:00:49]} 7. Nc3 {[%emt 0:03:52]} c6 {[%emt 0:05:23]} 8. O-O {[%emt 0:04:45]} b6 {[%emt 0:03:03]} 9. d3 {[%emt 0:03:00] Weiß hat minimalen Vorteil.} Ba6 {[%emt 0:02:57]} 10. e4 {[%emt 0:03:50][%cal Be2e4,Be4e5][%mdl 32]} Ra7 {[%emt 0:03:04]} 11. e5 {[%emt 0:06:37]} Nfd7 {[%emt 0:00:09]} 12. Ne2 {[%emt 0:03:18]} (12. a4 $14 {kam in Betracht.}) 12... b5 $11 {[%emt 0:03:10]} 13. Qc2 {[%emt 0:04:13]} a4 {[%emt 0:07:08]} 14. cxd5 {[%emt 0:05:37]} cxd5 {[%emt 0:00:49]} 15. Rac1 {[%emt 0:00:18]} Nb6 {[%emt 0:02:12]} (15... Bb7 $11) 16. Nf4 {[%emt 0:03:54]} Qd7 {[%emt 0:04:21]} 17. Bd4 {[%emt 0:01:24]} Rb7 {[%emt 0:06:19]} 18. Nh5 {[%emt 0:07:04][%cal Oh5f6]} Rc8 {[%emt 0:04:15]} 19. Qd2 {[%emt 0:00:17][%cal Oh5f6]} Qd8 {[%emt 0:03:46]} 20. Qf4 {[%emt 0:06:39][%cal Oh5f6] [#] Zielt auf Nf6+! ab.} (20. Rxc8 {vereinfacht} Nxc8 21. Rc1 axb3 22. axb3 Na7 23. Qf4) 20... Nc6 {[%emt 0:13:24]} 21. Bc5 {[%emt 0:06:45]} Bxc5 {[%emt 0:04:52]} (21... b4 {vereinfacht} 22. Bxe7 Nxe7 23. Rxc8 Nbxc8 24. Qd2 Nc6) 22. Rxc5 {[%emt 0:00:08]} Nd7 {[%emt 0:00:16]} 23. Rc2 {[%emt 0:04:18]} Nf8 {[%emt 0:12:16]} 24. Rfc1 $40 {[%emt 0:02:43][%mdl 128] Weiss greift an.} Rbc7 {[%emt 0:04:11]} 25. Qd2 {[%emt 0:06:58]} axb3 {[%emt 0:04:31]} 26. axb3 {[%emt 0:00:08]} b4 {[%emt 0:00:03]} 27. Bf1 {[%emt 0:03:55]} d4 {[%emt 0:04:28] [#]} (27... Ng6 $11 {hält das Gleichgewicht.} 28. d4 Bxf1 29. Kxf1 h6) 28. Qg5 $1 $16 {[%emt 0:09:42] Weiß hat aktiveres Spiel.} Qxg5 {[%emt 0:02:36]} 29. Nxg5 {[%emt 0:00:02] Und jetzt Ne4 wäre schön.} Ng6 {[%emt 0:01:19]} 30. Nf3 {[%emt 0:04:37]} (30. f4 $16) 30... Ncxe5 {[%emt 0:04:07]} (30... Bb7 $14) 31. Rxc7 {[%emt 0:00:11]} Nxf3+ {[%emt 0:00:04]} 32. Kh1 {[%emt 0:02:50]} Rb8 {[%emt 0:01:42]} (32... Rxc7 $16 33. Rxc7 Kf8) 33. Ra1 {[%emt 0:01:04]} Bb5 {[%emt 0:00:12]} 34. Be2 {[%emt 0:02:27]} Nfe5 {[%emt 0:01:03]} 35. Raa7 {[%emt 0:00:21]} Bc6+ {[%emt 0:02:01]} 36. Kg1 {[%emt 0:00:01] Und f4 würde nun gewinnen.} Bf3 {[%emt 0:00:15]} 37. Bxf3 {[%emt 0:00:59]} Nxf3+ {[%emt 0:00:02]} 38. Kf1 {[%emt 0:00:43]} ({Vorzuziehen ist} 38. Kg2 $18 {[%cal Oc7f7] Droht stark Rxf7!} Nge5 39. g4) 38... Nge5 {[%emt 0:00:12]} 39. Ke2 {[%emt 0:01:08]} h6 {[%emt 0:01:17]} 40. h4 {[%emt 0:00:40]} (40. h3 $142) 40... g5 $2 {[%emt 0:00:12][%mdl 8192] Wehrt Nf4 ab. Das kostet Schwarz die Partie.} (40... Ng1+ $16 41. Kd1 Ngf3) 41. Nf6+ $18 {[%emt 0:32:19] Weiß steht klar auf Gewinn.} Kg7 {[%emt 0:02:43]} 42. Nd7 {[%emt 0:00:00]} Nxd7 {[%emt 0:01:23]} (42... Rg8 $142 43. Nxe5 Nxe5 44. hxg5 hxg5) 43. Kxf3 {[%emt 0:00:00]} Ne5+ {[%emt 0:00:32]} 44. Ke4 {[%emt 0:00:00]} Rb5 {[%emt 0:03:35]} 45. hxg5 {[%emt 0:00:00] f4 wäre nun fies.} hxg5 {[%emt 0:00:02]} 46. f4 {[%emt 0:00:00] Gewichteter Fehlerwert: Weiß=0.16 (sehr präzise) /Schwarz=0.44.  Verlustzug:     	---       	Schwarz=1     Fehler:       	Weiß=4     	Schwarz=5     Ungenau:       	Weiß=2     	Schwarz=2     OK:         	Weiß=10    	Schwarz=16    Bester:       	Weiß=5     	---        Stark:        	Weiß=1     	---} 1-0

[Event "BL 2024-25"]
[Site "Austria"]
[Date "2024.10.09"]
[Round "1.34"]
[White "Balint, Peter"]
[Black "Rodshtein, Maxim"]
[Result "0-1"]
[ECO "B89"]
[WhiteElo "2375"]
[BlackElo "2613"]
[Annotator "TA"]
[PlyCount "126"]
[EventDate "2024.08.28"]
[EventType "team-tourn"]
[EventCountry "AUT"]
[SourceTitle "playchess.com"]
[Source "ChessBase"]
[SourceQuality "1"]
[WhiteTeam "Ottakring"]
[BlackTeam "Linz"]
[TimeControl "40/5400+30:1800+30"]

{[%evp 30,126,0,0,0,-193,-19,-25,-16,-15,-19,-22,-22,-20,-19,-100,-18,-23,-21,-20,-27,-20,-26,-27,-25,-59,-49,-49,-52,-53,-55,-66,-66,-73,-72,-83,-78,-89,-79,-79,-79,-75,-76,-76,-76,-76,-76,-221,-118,-118,-26,-26,-26,-34,-26,-34,-34,-34,-34,-39,-34,-39,-34,-83,-83,-83,-83,-83,-83,-83,-83,-83,-79,-79,-11,-11,0,-76,-76,-76,-75,-75,-75,-76,-75,-75,-75,-75,-8,-75,-75,-75,-75,-29984,-29985,-29988,-29989,-29989,-29989]} 1. e4 {[%emt 0:00:05]} c5 {[%emt 0:00:14]} 2. Nf3 {[%emt 0:00:07]} d6 {[%emt 0:00:13]} 3. d4 {[%emt 0:00:05]} cxd4 {[%emt 0:00:06]} 4. Nxd4 {[%emt 0:00:09]} Nf6 {[%emt 0:00:11]} 5. Nc3 {[%emt 0:00:05]} Nc6 {[%emt 0:00:26]} 6. Bc4 {[%emt 0:02:11]} e6 {[%emt 0:01:08]} 7. Be3 {[%emt 0:00:34]} Bd7 {[%emt 0:01:39]} 8. Qe2 {[%emt 0:01:49]} a6 {[%emt 0:01:29]} 9. Bb3 {[%emt 0:03:32]} Na5 {[%emt 0:08:43] B89: Sicilian: Velimirovic Attack.} 10. O-O-O {[%emt 0:02:45]} b5 {[%emt 0:00:14]} 11. g4 {[%emt 0:31:52]} b4 {[%emt 0:12:01]} 12. Na4 {[%emt 0:02:14]} Nxb3+ {[%emt 0:09:35]} 13. axb3 {[%emt 0:01:28]} Nxe4 {[%emt 0:19:35]} 14. f3 {[%emt 0:03:21]} Nc5 {[%emt 0:04:44]} 15. Nf5 {[%emt 0:21:31]} Qc7 {[%emt 0:17:34]} 16. Nxc5 {[%emt 0:04:04]} dxc5 {[%emt 0:00:02]} 17. Qd2 $146 {[%emt 0:02:13]} (17. Bf2 $11 {and White is okay.}) ({Predecessor:} 17. Rhe1 g6 18. Ng3 Bb5 19. Qf2 Be7 20. f4 O-O 21. f5 Rfd8 22. Ne4 Rxd1+ 23. Rxd1 exf5 24. gxf5 {1-0 Szymczuk,A (2061)-Spicak,K (2100) Mazowieckie-chT 0405 2004 (5)}) 17... O-O-O $2 {[%emt 0:06:45]} (17... exf5 $19 18. Bf4 Qc6 19. Rhe1+ Kd8 20. gxf5 a5) 18. Nd6+ $11 {[%emt 0:01:08]} Bxd6 {[%emt 0:00:07]} 19. Qxd6 {[%emt 0:00:31]} Bc6 {[%emt 0:00:15]} 20. Qxc5 {[%emt 0:03:09]} Bxf3 {[%emt 0:01:55]} 21. Rxd8+ {[%emt 0:00:10]} (21. Qxc7+ {simplifies} Kxc7 22. Rxd8 Rxd8 23. Rf1) 21... Rxd8 {[%emt 0:00:05]} 22. Qxc7+ {[%emt 0:00:04]} Kxc7 {[%emt 0:00:04]} 23. Rf1 {[%emt 0:00:04]} Bxg4 {[%emt 0:00:21]} 24. Rxf7+ {[%emt 0:00:05]} Kc6 {[%emt 0:00:53]} 25. Bd2 {[%emt 0:00:05]} h5 {[%emt 0:01:34]} 26. Rxg7 {[%emt 0:01:57]} Rf8 {[%emt 0:01:38]} 27. Bxb4 {[%emt 0:01:25]} Rf1+ {[%emt 0:00:04]} 28. Kd2 {[%emt 0:00:06]} Rf2+ {[%emt 0:00:02]} 29. Ke3 {[%emt 0:00:47]} Rxc2 {[%emt 0:00:26]} 30. Bc3 {[%emt 0:00:33]} Rxh2 {[%emt 0:02:12]} 31. Kf4 {[%emt 0:08:15]} Rf2+ {[%emt 0:03:37]} 32. Kg3 {[%emt 0:00:49]} Rf3+ {[%emt 0:00:16]} 33. Kh2 {[%emt 0:02:13]} Kd5 {[%emt 0:02:16]} 34. Ra7 {[%emt 0:03:28]} h4 {[%emt 0:03:25]} 35. Rxa6 {[%emt 0:03:20]} h3 $1 {[%emt 0:00:16]} 36. Ra5+ {[%emt 0:00:36]} Ke4 {[%emt 0:01:00]} 37. Ra4+ {[%emt 0:00:38]} Kf5 {[%emt 0:00:07]} 38. Be1 {[%emt 0:00:56]} (38. Ra5+ $17 Kf4 39. Be5+ Kf5 40. Bg3+ Kg6 41. Ra4) 38... Re3 {[%emt 0:02:22]} (38... Rxb3 39. Bc3 $11) (38... e5 $1 $19 {[%cal Of3e3]} 39. Ra8 Re3 (39... Rxb3 40. Bc3 $15)) 39. Bf2 $17 {[%emt 0:00:08]} Re2 {[%emt 0:01:17]} (39... Rd3 $17 {[%cal Od3d2] ...Rd2! is the strong threat.} 40. Ra8 Rd2 (40... Rxb3 41. Bd4 $17)) 40. Kg3 $11 {[%emt 0:00:23]} h2 {[%emt 0:00:28]} 41. Ra1 {[%emt 0:30:16]} Rxb2 {[%emt 0:03:34]} 42. Rf1 {[%emt 0:00:00]} Be2 {[%emt 0:03:18]} (42... Rxb3+ {simplifies} 43. Kxh2 e5 44. Bc5+ Ke6) 43. Rh1 {[%emt 0:00:00]} e5 {[%emt 0:02:12]} 44. Kxh2 {[%emt 0:00:00]} Bf3 {[%emt 0:05:50]} 45. Rf1 {[%emt 0:00:00]} Kf4 {[%emt 0:00:31]} 46. Kg1 {[%emt 0:00:00] [#]} (46. Kh3 $1 $15) 46... e4 $1 $17 {[%emt 0:01:34]} ({Much worse is} 46... Rxb3 $6 47. Bc5 $11) 47. Re1 {[%emt 0:00:00]} Be2 $1 {[%emt 0:01:42]} ({Don't play} 47... Rxb3 $6 48. Bc5 $11) 48. Bd4 {[%emt 0:00:00]} Rd2 {[%emt 0:00:12]} ({Of course not} 48... Rxb3 $6 49. Rxe2 e3 50. Kg2 $11) 49. Bc5 {[%emt 0:00:00]} Kf3 {[%emt 0:01:43]} 50. b4 {[%emt 0:00:00]} Rd5 {[%emt 0:00:48]} 51. Rb1 {[%emt 0:00:00]} Bd3 {[%emt 0:08:29]} (51... e3 $17 {Threatens to win with ...Bd3.} 52. Bxe3 Kxe3 53. Rb3+ Kf4) 52. Re1 $11 {[%emt 0:00:00]} Be2 {[%emt 0:00:32]} ({Black should try} 52... Rg5+ $11 53. Kh2 Be2) 53. Rb1 $1 $17 {[%emt 0:00:00]} Rg5+ {[%emt 0:00:42]} 54. Kh2 {[%emt 0:00:00]} Rh5+ {[%emt 0:01:03]} 55. Kg1 {[%emt 0:00:00] [#]} Rd5 $1 {[%emt 0:01:26]} 56. Ba7 {[%emt 0:01:01]} Rd7 {[%emt 0:01:17]} 57. Bc5 {[%emt 0:00:13]} e3 {[%emt 0:02:22]} 58. Rb3 {[%emt 0:00:41]} Rd1+ {[%emt 0:00:12]} 59. Kh2 {[%emt 0:00:06]} Bd3 {[%emt 0:00:04]} 60. Bxe3 {[%emt 0:04:30]} Kxe3 {[%emt 0:00:02]} 61. b5 $2 {[%emt 0:00:43][%mdl 8192]} (61. Kg3 $17) 61... Kf4 {[%emt 0:00:26]} 62. Rb2 {[%emt 0:03:46]} Be4 {[%emt 0:00:19]} 63. Kh3 {[%emt 0:00:31]} Rd7 {[%emt 0:00:22]} 0-1

[Event "BL 2024-25"]
[Site "Austria"]
[Date "2024.10.09"]
[Round "1.35"]
[White "Shimanov, Aleksandr"]
[Black "Huber, Benedikt"]
[Result "1-0"]
[ECO "A13"]
[WhiteElo "2582"]
[BlackElo "2299"]
[Annotator "RC"]
[PlyCount "119"]
[EventDate "2024.08.28"]
[EventType "team-tourn"]
[EventCountry "AUT"]
[SourceTitle "playchess.com"]
[Source "ChessBase"]
[SourceQuality "1"]
[WhiteTeam "Linz"]
[BlackTeam "Ottakring"]
[TimeControl "40/5400+30:1800+30"]

1. c4 {[%emt 0:01:01]} e6 {[%emt 0:00:36]} 2. g3 {[%emt 0:00:58]} d5 {[%emt 0:01:09]} 3. Bg2 {[%emt 0:00:17]} Nf6 {[%emt 0:00:26]} 4. Nf3 {[%emt 0:00:24]} dxc4 {[%emt 0:02:03]} 5. Qa4+ {[%emt 0:01:09]} Bd7 {[%emt 0:00:15]} 6. Qxc4 {[%emt 0:00:06]} c5 {[%emt 0:00:27]} 7. Ne5 {[%emt 0:00:57]} Qc8 {[%emt 0:00:36]} 8. Qd3 {[%emt 0:01:11]} Nc6 {[%emt 0:02:34]} 9. Nxd7 {[%emt 0:00:15]} Qxd7 {[%emt 0:00:15]} 10. Qxd7+ {[%emt 0:00:46]} Kxd7 {[%emt 0:00:46]} 11. Nc3 {[%emt 0:01:28]} Be7 {[%emt 0:01:45]} 12. b3 {[%emt 0:03:51]} Rac8 {[%emt 0:03:50]} 13. Bb2 {[%emt 0:00:59]} Ne8 {[%emt 0:06:24]} 14. e3 {[%emt 0:07:03]} Bf6 {[%emt 0:04:24]} 15. f4 {[%emt 0:02:13]} Nd6 {[%emt 0:03:16]} 16. Ke2 {[%emt 0:02:56]} b6 {[%emt 0:01:23]} 17. Rab1 {[%emt 0:07:25]} Rhd8 {[%emt 0:16:10]} 18. Rhc1 {[%emt 0:06:23]} Rc7 {[%emt 0:06:48]} 19. g4 {[%emt 0:10:13]} h6 {[%emt 0:46:53]} 20. Rf1 {[%emt 0:13:34]} Ke7 {[%emt 0:00:00]} 21. a3 {[%emt 0:06:55]} Na5 {[%emt 0:00:00]} 22. e4 {[%emt 0:08:34]} Bxc3 {[%emt 0:00:00]} 23. Bxc3 {[%emt 0:00:24]} f6 {[%emt 0:00:00]} 24. b4 {[%emt 0:03:06]} cxb4 {[%emt 0:00:00]} 25. Bxb4 {[%emt 0:01:41]} e5 {[%emt 0:00:00]} 26. fxe5 {[%emt 0:11:01]} fxe5 {[%emt 0:00:00]} 27. Rfc1 {[%emt 0:00:19]} Nc6 {[%emt 0:00:00]} 28. Bc3 {[%emt 0:02:37]} Rdc8 {[%emt 0:00:00]} 29. Rf1 {[%emt 0:01:46]} Nf7 {[%emt 0:00:00]} 30. Rb5 {[%emt 0:01:01]} Rd7 {[%emt 0:02:14]} 31. Rd5 {[%emt 0:00:37]} Ng5 {[%emt 0:01:35]} 32. Ke3 {[%emt 0:01:38]} Ne6 {[%emt 0:00:50]} 33. Rf5 {[%emt 0:01:12]} g6 {[%emt 0:01:15]} 34. Rxd7+ {[%emt 0:00:34]} Kxd7 {[%emt 0:00:01]} 35. Rf7+ {[%emt 0:00:26]} Kd6 {[%emt 0:00:32]} 36. Rh7 {[%emt 0:01:15]} Nf4 {[%emt 0:01:04]} 37. Bf1 {[%emt 0:00:12]} h5 {[%emt 0:00:37]} 38. g5 {[%emt 0:02:11]} Ne6 {[%emt 0:00:47]} 39. h4 {[%emt 0:00:19]} Rf8 {[%emt 0:00:28]} 40. Bc4 {[%emt 0:00:55]} Rf4 {[%emt 0:00:33]} 41. Bxe6 {[%emt 0:12:09]} Kxe6 {[%emt 0:00:23]} 42. d4 {[%emt 0:00:14]} Nxd4 {[%emt 0:05:15]} 43. Bxd4 {[%emt 0:00:34]} Rxh4 {[%emt 0:00:06]} 44. Bc3 {[%emt 0:00:50]} Rh3+ {[%emt 0:00:08]} 45. Kd2 {[%emt 0:00:05]} Rh2+ {[%emt 0:00:13]} 46. Kd1 {[%emt 0:03:08]} Rh4 {[%emt 0:01:03]} 47. Rg7 {[%emt 0:02:26]} Rxe4 {[%emt 0:00:08]} 48. Rxg6+ {[%emt 0:00:15]} Kf5 {[%emt 0:00:11]} 49. Rg7 {[%emt 0:00:12]} a5 {[%emt 0:08:29]} 50. Bd2 {[%emt 0:00:13]} Ra4 {[%emt 0:02:34]} 51. Rf7+ {[%emt 0:00:33]} Kg6 {[%emt 0:00:26]} 52. Rf6+ {[%emt 0:00:16]} Kg7 {[%emt 0:00:05]} 53. Rxb6 {[%emt 0:01:06]} Rxa3 {[%emt 0:00:07]} 54. Rh6 {[%emt 0:01:40]} a4 {[%emt 0:03:32]} 55. Rxh5 {[%emt 0:00:09]} Rg3 {[%emt 0:00:18]} 56. Rh6 {[%emt 0:00:55]} a3 {[%emt 0:01:21]} 57. Ra6 {[%emt 0:00:17]} e4 {[%emt 0:00:19]} 58. Ke2 {[%emt 0:02:45]} a2 {[%emt 0:01:31]} 59. Rxa2 {[%emt 0:00:42]} e3 {[%emt 0:00:04]} 60. Ra7+ {[%emt 0:00:13]} 1-0

[Event "BL 2024-25"]
[Site "Austria"]
[Date "2024.10.09"]
[Round "1.36"]
[White "Steindl, Johannes"]
[Black "Bacrot, Etienne"]
[Result "0-1"]
[ECO "B12"]
[WhiteElo "2225"]
[BlackElo "2658"]
[Annotator "TA"]
[PlyCount "64"]
[EventDate "2024.08.28"]
[EventType "team-tourn"]
[EventCountry "AUT"]
[SourceTitle "playchess.com"]
[Source "ChessBase"]
[SourceQuality "1"]
[WhiteTeam "Ottakring"]
[BlackTeam "Linz"]
[TimeControl "40/5400+30:1800+30"]

{[%evp 9,63,-32,-27,-37,-30,-35,-25,-64,-48,-85,-87,-81,-81,-112,-102,-110,-120,-114,-93,-73,-79,-128,-131,-139,-125,-148,-125,-148,-153,-175,-140,-189,-182,-179,-174,-212,-180,-222,-112,-120,-116,-178,-184,-183,-185,-309,-333,-29975,-29974,-5616,-1018,-29996,-29997,-29998,-29999,-29999]} 1. e4 {[%emt 0:00:02]} c6 {[%emt 0:00:17]} 2. d4 {[%emt 0:00:32]} d5 {[%emt 0:00:05]} 3. f3 {[%emt 0:00:31]} e6 {[%emt 0:01:40]} 4. Nc3 {[%emt 0:00:04]} Bb4 {[%emt 0:00:08]} 5. a3 {[%emt 0:01:19]} Bxc3+ {[%emt 0:00:52]} 6. bxc3 {[%emt 0:00:04]} dxe4 {[%emt 0:00:06][%cal Oc6c5]} 7. a4 {[%emt 0:02:21] [#]} c5 $1 {[%emt 0:04:02]} 8. Be3 {[%emt 0:11:59] Black has an edge.} (8. Nh3 Nf6) 8... cxd4 {[%emt 0:08:37]} 9. cxd4 {[%emt 0:03:13]} Bd7 {[%emt 0:02:20]} 10. fxe4 {[%emt 0:05:23]} Qh4+ {[%emt 0:01:49]} 11. Bf2 {[%emt 0:00:03]} Qxe4+ {[%emt 0:00:05]} 12. Be2 {[%emt 0:00:04]} Qxg2 {[%emt 0:10:41]} 13. Bf3 {[%emt 0:02:13]} Qg5 {[%emt 0:00:48] Threatens to win with ...Bc6.} (13... Qg6 {simplifies} 14. Ne2 Nc6 15. Rb1 b6) 14. Bxb7 {[%emt 0:12:08] [#]} Bc6 $1 {[%emt 0:00:23]} 15. Bxc6+ {[%emt 0:00:05]} (15. Bxa8 $2 Bxa8 16. Nh3 Qg2 $19) (15. Qb1 $142 Qa5+ 16. Ke2) 15... Nxc6 $17 {[%emt 0:00:06][%cal Bb8c6,Bc6a5,Ba5c4][%mdl 32]} 16. Nf3 {[%emt 0:00:07]} Qa5+ {[%emt 0:03:40]} 17. Qd2 {[%emt 0:00:18]} Nf6 {[%emt 0:01:37]} 18. Qxa5 {[%emt 0:05:14]} Nxa5 {[%emt 0:01:04]} 19. Rb1 {[%emt 0:00:04]} Ne4 {[%emt 0:04:10]} 20. Rb5 {[%emt 0:07:14]} (20. O-O $17) 20... Nc4 $19 {[%emt 0:00:28] A dynamic duo of knights.} 21. O-O {[%emt 0:00:50]} O-O {[%emt 0:02:39]} 22. Ne5 {[%emt 0:02:11]} Rfc8 {[%emt 0:02:54] Hoping for ...Ncd2.} 23. Rb7 {[%emt 0:04:28]} f6 {[%emt 0:07:06]} (23... Ncd6 $19 24. Rd7 Rxc2) 24. Nxc4 $17 {[%emt 0:04:09]} Rxc4 {[%emt 0:00:07]} 25. Re7 {[%emt 0:00:03]} (25. Re1 $17 {was necessary.} Ng5 26. Kg2) 25... Nxf2 {[%emt 0:10:17]} 26. Kxf2 $19 {[%emt 0:01:55][%mdl 4096] Endgame. KRR-KRR} Rac8 {[%emt 0:11:41]} 27. Rg1 (27. Rxa7 $142 Rxc2+ 28. Kg1) 27... Rxc2+ {[%emt 0:00:30]} (27... Rxa4 28. Rgxg7+ Kf8 29. Ke1 $11) 28. Ke3 $2 (28. Kf1 $19 g5 (28... Rxh2 29. Rgxg7+ Kh8 30. Kg1 $11) (28... Rc1+ $2 29. Kg2 $19) 29. Rg2 Rc1+ 30. Kf2) 28... R8c3+ {[%emt 0:00:30]} (28... Rxh2 29. Rgxg7+ Kh8 30. d5 $11) 29. Kf4 g5+ {[%emt 0:00:30]} (29... Rxh2 $2 {is the wrong capture.} 30. Rexg7+ Kf8 31. Rg8+ Ke7 32. R1g7+ Kd6 33. Rd8+ (33. Rxa7 {leads to mate.} Rf2+ 34. Kg4 Rg2+ 35. Kf4 Rxg8 36. Ra6+ Kd5 37. Ra5+ Kxd4 38. Ra7 Rcg3 39. Rd7+ Kc5 40. Rc7+ Kd6) 33... Kc6 34. Rc8+ (34. Rxa7 $2 Rh4#) 34... Kd6 35. Rxc3 $18) (29... Rf2+ $142 30. Ke4 Re2+ (30... Rxh2 $2 {loses.} 31. Rexg7+ Kf8 32. Rg8+ Ke7 33. R1g7+ Kd6 34. Rd8+ Kc6 35. Rc8+ Kd6 36. Rxc3 $18) 31. Kf4 g5+ (31... Rxh2 $2 32. Rexg7+ Kf8 33. Rg8+ Ke7 34. R1g7+ Kd6 35. Rd8+ Kc6 36. Rc8+ Kd6 37. Rxc3 $18) 32. Rxg5+ fxg5+ 33. Kxg5 Re4 (33... Rxh2 $2 34. Rxe6 Rg2+ 35. Kf5 $19) (33... Rg2+ $2 34. Kf4 $19) 34. Rxa7 Rf3 (34... Rxd4 $2 35. Kf6 $19)) 30. Kg4 Rxh2 {[%emt 0:00:30][%csl Gg5][%cal Rh2h4] Black mates.} 31. Rxe6 Rh4+ {[%emt 0:00:30]} 32. Kf5 Rf4# {[%emt 0:00:30] Weighted Error Value: White=0.52/Black=0.37.  Mistake:       	White=5     	Black=1      Inaccurate:     	White=3     	---        OK:         	White=7     	Black=7      Best:        	White=2     	Black=4      Strong:       	---       	Black=1} 0-1